{"text_format":"1","workbook":"xlsx","n_sheets":1,"sheets":["сводная роспись источники 2014"],"not_rendered":{"charts":0,"images":0,"macros":1,"external_links":0,"defined_names":1,"comments":0,"pivot_tables":0},"unopened":[],"bounds":{"document_bytes":16777216,"sheet_cells":100000,"rows_first":2000,"rows_last":500,"rows_between":2000,"halvings":0,"cell_chars":16384,"cell_head_chars":4096},"cells_cut":0,"cells_raw":0,"read":"whole","date_system":"1900"}

{"sheet":"сводная роспись источники 2014","index":0,"n_rows":45,"n_cols":10,"rows_kept":45,"cut":false,"hidden":false,"merged":[[18,1,18,4],[35,0,35,5],[3,1,3,8],[11,0,11,9],[13,0,13,9],[15,0,15,9],[18,0,19,0],[18,7,19,7],[18,8,19,8],[18,9,19,9],[19,2,19,4]]}
[null,"УТВЕРЖДЕНО"]
[]
[null,"Заместитель главы администрации района,"]
[null,"начальник финансового управления администрации Клетнянского района"]
[]
[null,"__________________________       В.Н.Кортелева"]
[]
[null,"17 декабря     2013  года"]
[]
[]
[]
[" СВОДНАЯ РОСПИСЬ ИСТОЧНИКОВ ВНУТРЕННЕГО ФИНАНСИРОВАНИЯ ДЕФИЦИТА"]
[]
["БЮДЖЕТА МУНИЦИПАЛЬНОГО ОБРАЗОВАНИЯ \"КЛЕТНЯНСКИЙ МУНИЦИПАЛЬНЫЙ РАЙОН\""]
[]
[" на 2014 год и плановый период 2015 и 2016 годов "]
[]
[]
["наименование","Код источника",null,null,null,null,null,"Сумма на текущий финансовый год        2014  год","Сумма на I год планового периода                                          2015 год","Сумма на II год планового периода   2016 год"]
[null,"главного администратора источников внутреннего финансирования дефицита районного бюджета","источника внутреннего финансирования дефицита районного бюджета",null,null,"#Н/Д","#Н/Д"]
[" Финансовое управление администрации Клетнянского района","853","0000000000","0000","000",null,null,{"$f":"H22","v":0},{"$f":"I22","v":0},0]
["ИСТОЧНИКИ ВНУТРЕННЕГО ФИНАНСИРОВАНИЯ   всего","853","0000000000","0000","000",null,null,{"$f":"H23","v":0},0,0]
["Изменение остатков средств","853","010000000","000",null,null,null,{"$f":"H24","v":0},0,0]
["Изменение остатков средств на счетах по учету средств бюджета","853","010500000","000",null,null,null,{"$f":"H25+H30","v":0},{"$f":"I25+I30","v":0},0]
["      увеличение прочих остатков  средств  бюджетов","853","010500000","000","500",null,null,{"$f":"H26","v":-217231570},{"$f":"I26","v":-211830158},-214840497.5]
["      увеличение прочих остатков денежных  средств  бюджетов ","853","0105020105","0000","510",null,null,{"$f":"H27","v":-217231570},-211830158,-214840497.5]
["        увеличение  прочих остатков денежных средств  бюджетов муниципальных районов","853","0105020105","0000","510",null,null,{"$f":"H28","v":-217231570},-211830158,-214840497.5]
["          Эк. Класс.: Поступление на счета бюджетов","853","0105020105","0000","510",null,null,-217231570,-211830158,-214840497.5]
[null,"853","0105020105","0000","510",null,null,-217231570,-211830158,-214840497.5]
["      уменьшение  остатков  средств бюджетов ","853","0105000000","0000","600",null,null,{"$f":"H31","v":217231570},{"$f":"I31","v":211830158},214840497.5]
["      уменьшение прочих остатков  средств бюджетов ","853","0105020105","0000","600",null,null,{"$f":"H32","v":217231570},211830158,214840497.5]
["      уменьшение прочих остатков денежных средств бюджетов ","853","0105020000","0000","610",null,null,{"$f":"H33","v":217231570},211830158,214840497.5]
["        уменьшение прочих остатков денежных средств  бюджетов муниципальных районов","853","0105020105","0000","610",null,null,{"$f":"H34","v":217231570},211830158,214840497.5]
["          Эк. Класс.: Выбытия со счетов бюджетов","853","0105020105","0000","610",null,null,217231570,211830158,214840497.5]
[null,"853","0105020105","0000","610",null,null,217231570,211830158,214840497.5]
["Всего источников:",null,null,null,null,null,null,0,0,0]
[]
["Заместитель начальника финансового  управления",null,"_________________________________________И.В.Курашина"]
[" администрации Клетнянского района"]
[]
[]
["Исполнитель  "]
["8(48338)91831"]
["Главный специалист                                                                 С.А.Кащеева"]
["17  декабря 2013 года"]